fUST/lending_fUST_20250729
["ID","MTS","AMOUNT","RATE_DAILY","PERIOD"]
[375759786,1753732241523,-500.0,0.00019973,2]
[375759787,1753732241532,-500.0,0.00019973,2]
[375759788,1753732241542,-500.0,0.00019973,2]
[375759789,1753732241551,-500.0,0.00019973,2]
[375759790,1753732241561,-500.0,0.00019973,2]
[375759791,1753732241573,-500.0,0.00019973,2]
[375759792,1753732241582,-500.0,0.00019973,2]
[375759793,1753732241595,-82216.72455774,0.0001999,2]
[375759794,1753732241603,-460.0,0.0002,2]
[375759795,1753732241613,-606.36,0.0002,2]
[375759796,1753732241622,-951.44,0.0002,2]
[375759797,1753732241632,-233.04724231,0.0002,2]
[375759798,1753732241641,-670.97,0.0002,2]
[375759799,1753732241650,-460.0,0.0002,2]
[375759800,1753732241659,-344.02726628,0.0002,2]
[375759801,1753732241669,-460.0,0.0002,2]
[375759802,1753732241679,-460.0,0.0002,2]
[375759803,1753732241688,-460.0,0.0002,2]
[375759804,1753732241698,-460.0,0.0002,2]
[375759805,1753732241708,-475.44,0.0002,2]
[375759806,1753732241718,-460.0,0.0002,2]
[375759807,1753732241727,-460.0,0.0002,2]
[375759808,1753732241738,-460.0,0.0002,2]
[375759809,1753732241748,-460.0,0.0002,2]
[375759810,1753732241759,-460.0,0.0002,2]
[375759811,1753732241769,-460.0,0.0002,2]
[375759812,1753732241778,-578.46,0.0002,2]
[375759813,1753732241789,-4776.13,0.0002,2]
[375759814,1753732241799,-460.0,0.0002,2]
[375759815,1753732241809,-308.6608633,0.0002,2]
[375759816,1753732241820,-460.0,0.0002,2]
[375759817,1753732241831,-460.0,0.0002,2]
[375759818,1753732241846,-460.0,0.0002,2]
[375759819,1753732241856,-460.0,0.0002,2]
[375759820,1753732241867,-2556.15,0.0002,2]
[375759821,1753732241877,-5853.43,0.0002,2]
[375759822,1753732241887,-541.14,0.0002,2]
[375759823,1753732241896,-542.76,0.0002,2]
[375759824,1753732241907,-510.00702442,0.0002,2]
[375759825,1753732241916,-460.0,0.0002,2]
[375759826,1753732241926,-1757.55,0.0002,2]
[375759827,1753732241935,-460.0,0.0002,2]
[375759828,1753732241944,-460.0,0.0002,2]
[375759829,1753732241954,-460.0,0.0002,2]
[375759830,1753732241963,-460.0,0.0002,2]
[375759831,1753732241973,-994.68,0.0002,2]
[375759832,1753732241982,-505.23,0.0002,2]
[375759833,1753732241995,-3430.45,0.0002,2]
[375759834,1753732242016,-460.0,0.0002,2]
[375759835,1753732242034,-473.2,0.0002,2]
[375759836,1753732242047,-622.29,0.0002,2]
[375759837,1753732242056,-460.0,0.0002,2]
[375759838,1753732242065,-1565.51,0.0002,2]
[375759839,1753732242074,-930.17,0.0002,2]
[375759840,1753732242084,-460.0,0.0002,2]
[375759841,1753732242097,-460.0,0.0002,2]
[375759842,1753732242106,-460.0,0.0002,2]
[375759843,1753732242118,-738.4,0.0002,2]
[375759844,1753732242127,-460.0,0.0002,2]
[375759845,1753732242136,-460.0,0.0002,2]
[375759846,1753732242145,-460.0,0.0002,2]
[375759847,1753732242154,-460.0,0.0002,2]
[375759848,1753732242164,-562.19,0.0002,2]
[375759849,1753732242173,-460.0,0.0002,2]
[375759850,1753732242182,-3165.1,0.0002,2]
[375759851,1753732242191,-460.0,0.0002,2]
[375759852,1753732242201,-1490.83,0.0002,2]
[375759853,1753732242210,-460.0,0.0002,2]
[375759854,1753732242219,-460.0,0.0002,2]
[375759855,1753732242228,-483.33,0.0002,2]
[375759856,1753732242237,-460.0,0.0002,2]
[375759857,1753732242246,-2025.5,0.0002,2]
[375759858,1753732242256,-1649.51,0.0002,2]
[375759859,1753732242265,-904.77,0.0002,2]
[375759860,1753732242273,-500.38,0.0002,2]
[375759861,1753732242282,-460.0,0.0002,2]
[375759862,1753732242291,-460.0,0.0002,2]
[375759863,1753732242300,-460.0,0.0002,2]
[375759864,1753732242309,-710.73,0.0002,2]
[375759865,1753732242318,-460.0,0.0002,2]
[375759866,1753732242327,-460.0,0.0002,2]
[375759867,1753732242336,-460.0,0.0002,2]
[375759868,1753732242348,-1387.64,0.0002,2]
[375759869,1753732242357,-645.56,0.0002,2]
[375759870,1753732242366,-460.0,0.0002,2]
[375759871,1753732242376,-453.83520969,0.0002,2]
[375759872,1753732242385,-460.0,0.0002,2]
[375759873,1753732242394,-460.0,0.0002,2]
[375759874,1753732242403,-468.13037485,0.0002,2]
[375759875,1753732242412,-410.96699626,0.00020095,2]
[375759876,1753732242422,-460.384944,0.00020187,2]
[375759877,1753732242431,-460.0,0.00020273,2]
[375759878,1753732242441,-951.44,0.00020273,2]
[375759879,1753732242450,-670.97,0.00020273,2]
[375759880,1753732242459,-579.21818815,0.00020273,2]
[375759882,1753732242468,-396.32042496,0.00020273,2]
[375759883,1753732242477,-460.0,0.00020273,2]
[375759884,1753732242486,-460.0,0.00020273,2]
[375759885,1753732242495,-460.0,0.00020273,2]
[375759886,1753732242504,-475.44,0.00020273,2]
[375759887,1753732242513,-460.0,0.00020273,2]
[375759888,1753732242522,-264.46,0.00020273,2]
[375759889,1753732242532,-591.97,0.00020273,2]
[375759890,1753732242541,-460.0,0.00020273,2]
[375759891,1753732242550,-460.0,0.00020273,2]
[375759892,1753732242559,-578.46,0.00020273,2]
[375759893,1753732242570,-4776.13,0.00020273,2]
[375759894,1753732242579,-592.39619859,0.00020273,2]
[375759895,1753732242588,-460.0,0.00020273,2]
[375759896,1753732242600,-460.0,0.00020273,2]
[375759897,1753732242609,-460.0,0.00020273,2]
[375759898,1753732242618,-460.0,0.00020273,2]
[375759899,1753732242627,-2556.15,0.00020273,2]
[375759900,1753732242637,-5853.43,0.00020273,2]
[375759901,1753732242646,-541.14,0.00020273,2]
[375759902,1753732242656,-542.76,0.00020273,2]
[375759903,1753732242665,-460.0,0.00020273,2]
[375759904,1753732242674,-1757.55,0.00020273,2]
[375759905,1753732242683,-460.0,0.00020273,2]
[375759906,1753732242692,-460.0,0.00020273,2]
[375759907,1753732242701,-460.0,0.00020273,2]
[375759908,1753732242710,-460.0,0.00020273,2]
[375759909,1753732242719,-505.23,0.00020273,2]
[375759910,1753732242728,-3430.45,0.00020273,2]
[375759911,1753732242737,-607.14,0.00020273,2]
[375759912,1753732242748,-473.2,0.00020273,2]
[375759913,1753732242757,-622.29,0.00020273,2]
[375759914,1753732242766,-460.0,0.00020273,2]
[375759915,1753732242775,-1565.51,0.00020273,2]
[375759916,1753732242785,-930.17,0.00020273,2]
[375759917,1753732242793,-460.0,0.00020273,2]
[375759918,1753732242802,-460.0,0.00020273,2]
[375759919,1753732242811,-460.0,0.00020273,2]
[375759920,1753732242820,-738.4,0.00020273,2]
[375759921,1753732242829,-460.0,0.00020273,2]
[375759922,1753732242841,-460.0,0.00020273,2]
[375759923,1753732242850,-460.0,0.00020273,2]
[375759924,1753732242859,-460.0,0.00020273,2]
[375759925,1753732242868,-460.0,0.00020273,2]
[375759926,1753732242878,-3165.1,0.00020273,2]
[375759927,1753732242887,-460.0,0.00020273,2]
[375759928,1753732242896,-1490.83,0.00020273,2]
[375759929,1753732242906,-460.0,0.00020273,2]
[375759930,1753732242915,-460.0,0.00020273,2]
[375759931,1753732242924,-483.33,0.00020273,2]
[375759932,1753732242932,-460.0,0.00020273,2]
[375759933,1753732242942,-2025.5,0.00020273,2]
[375759934,1753732242951,-1649.51,0.00020273,2]
[375759935,1753732242960,-904.77,0.00020273,2]
[375759936,1753732242969,-500.38,0.00020273,2]
[375759937,1753732242979,-460.0,0.00020273,2]
[375759938,1753732242988,-460.0,0.00020273,2]
[375759939,1753732242997,-460.0,0.00020273,2]
[375759940,1753732243009,-710.73,0.00020273,2]
[375759941,1753732243018,-460.0,0.00020273,2]
[375759942,1753732243027,-460.0,0.00020273,2]
[375759943,1753732243040,-460.0,0.00020273,2]
[375759944,1753732243049,-1387.64,0.00020273,2]
[375759945,1753732243059,-645.56,0.00020273,2]
[375759946,1753732243068,-460.0,0.00020273,2]
[375759947,1753732243077,-460.0,0.00020273,2]
[375759948,1753732243086,-460.0,0.00020273,2]
[375759949,1753732243098,-1000.0,0.0002033,2]
[375759950,1753732243107,-1387.31851068,0.00020379,2]
[375759951,1753732243117,-1000.0,0.00020521,2]
[375759952,1753732243126,-1000.0,0.00020521,2]
[375759953,1753732243135,-1000.0,0.00020521,2]
[375759954,1753732243145,-503.59439869,0.00020521,2]
[375759955,1753732243155,-516.86457404,0.00020521,2]
[375759956,1753732243163,-1000.0,0.00020521,2]
[375759957,1753732243172,-1000.0,0.00020521,2]
[375759958,1753732243182,-510.46393675,0.00020521,2]
[375759959,1753732243191,-1000.0,0.00020521,2]
[375759960,1753732243200,-817.1,0.00020527,3]
[375759961,1753732243209,-408.54,0.00020527,3]
[375759962,1753732243218,-460.0,0.00020547,2]
[375759963,1753732243227,-951.44,0.00020547,2]
[375759964,1753732243236,-670.97,0.00020547,2]
[375759965,1753732243245,-460.0,0.00020547,2]
[375759966,1753732243255,-460.0,0.00020547,2]
[375759967,1753732243263,-460.0,0.00020547,2]
[375759968,1753732243272,-475.44,0.00020547,2]
[375759969,1753732243282,-460.0,0.00020547,2]
[375759970,1753732243291,-460.0,0.00020547,2]
[375759971,1753732243299,-460.0,0.00020547,2]
[375759972,1753732243308,-578.46,0.00020547,2]
[375759973,1753732243318,-4776.13,0.00020547,2]
[375759974,1753732243327,-460.0,0.00020547,2]
[375759975,1753732243335,-460.0,0.00020547,2]
[375759976,1753732243346,-460.0,0.00020547,2]
[375759977,1753732243357,-460.0,0.00020547,2]
[375759978,1753732243366,-2556.15,0.00020547,2]
[375759979,1753732243375,-5853.43,0.00020547,2]
[375759980,1753732243385,-541.14,0.00020547,2]
[375759981,1753732243394,-542.76,0.00020547,2]
[375759982,1753732243403,-460.0,0.00020547,2]
[375759983,1753732243411,-1757.55,0.00020547,2]
[375759984,1753732243420,-460.0,0.00020547,2]
[375759985,1753732243429,-460.0,0.00020547,2]
[375759986,1753732243438,-460.0,0.00020547,2]
[375759987,1753732243447,-460.0,0.00020547,2]
[375759988,1753732243457,-505.23,0.00020547,2]
[375759989,1753732243466,-3430.45,0.00020547,2]
[375759990,1753732243475,-473.2,0.00020547,2]
[375759991,1753732243484,-622.29,0.00020547,2]
[375759992,1753732243493,-460.0,0.00020547,2]
[375759993,1753732243502,-1565.51,0.00020547,2]
[375759994,1753732243511,-930.17,0.00020547,2]
[375759995,1753732243519,-460.0,0.00020547,2]
[375759996,1753732243528,-460.0,0.00020547,2]
[375759997,1753732243537,-460.0,0.00020547,2]
[375759998,1753732243546,-738.4,0.00020547,2]
[375759999,1753732243562,-460.0,0.00020547,2]
[375760000,1753732243572,-460.0,0.00020547,2]
[375760001,1753732243581,-460.0,0.00020547,2]
[375760002,1753732243592,-460.0,0.00020547,2]
[375760003,1753732243600,-460.0,0.00020547,2]
[375760004,1753732243609,-3165.1,0.00020547,2]
[375760005,1753732243619,-460.0,0.00020547,2]
[375760006,1753732243628,-1490.83,0.00020547,2]
[375760007,1753732243636,-460.0,0.00020547,2]
[375760008,1753732243645,-460.0,0.00020547,2]
[375760009,1753732243655,-483.33,0.00020547,2]
[375760010,1753732243664,-2025.5,0.00020547,2]
[375760011,1753732243673,-1649.51,0.00020547,2]
[375760012,1753732243682,-904.77,0.00020547,2]
[375760013,1753732243691,-500.38,0.00020547,2]
[375760014,1753732243700,-460.0,0.00020547,2]
[375760015,1753732243709,-460.0,0.00020547,2]
[375760016,1753732243718,-460.0,0.00020547,2]
[375760017,1753732243727,-710.73,0.00020547,2]
[375760018,1753732243736,-460.0,0.00020547,2]
[375760019,1753732243745,-460.0,0.00020547,2]
[375760020,1753732243755,-540.56,0.00020547,2]
[375760021,1753732243899,-1387.64,0.00020547,2]
[375760022,1753732243929,-645.56,0.00020547,2]
[375760023,1753732243938,-460.0,0.00020547,2]
[375760024,1753732243948,-460.0,0.00020547,2]
[375760025,1753732243958,-460.0,0.00020547,2]
[375760026,1753732243967,-500.0,0.00020789,2]
[375760027,1753732243976,-420.0,0.00020791,2]
[375760028,1753732243985,-460.0,0.00020821,2]
[375760029,1753732243995,-951.44,0.00020821,2]
[375760030,1753732244003,-670.97,0.00020821,2]
[375760031,1753732244013,-460.0,0.00020821,2]
[375760032,1753732244022,-460.0,0.00020821,2]
[375760033,1753732244032,-460.0,0.00020821,2]
[375760034,1753732244045,-475.44,0.00020821,2]
[375760035,1753732244054,-460.0,0.00020821,2]
[375760036,1753732244064,-460.0,0.00020821,2]
[375760037,1753732244073,-460.0,0.00020821,2]
[375760038,1753732244083,-578.46,0.00020821,2]
[375760039,1753732244094,-4776.13,0.00020821,2]
[375760040,1753732244103,-460.0,0.00020821,2]
[375760041,1753732244113,-191.25,0.00020821,2]
[375760042,1753732244122,-460.0,0.00020821,2]
[375760043,1753732244131,-460.0,0.00020821,2]
[375760044,1753732244141,-2556.15,0.00020821,2]
[375760045,1753732244150,-5853.43,0.00020821,2]
[375760046,1753732244166,-541.14,0.00020821,2]
[375760047,1753732244180,-542.76,0.00020821,2]
[375760048,1753732244189,-460.0,0.00020821,2]
[375760049,1753732244198,-1757.55,0.00020821,2]
[375760050,1753732244207,-460.0,0.00020821,2]
[375760051,1753732244216,-490.22,0.00020821,2]
[375760052,1753732244225,-460.0,0.00020821,2]
[375760053,1753732244235,-460.0,0.00020821,2]
[375760054,1753732244245,-505.23,0.00020821,2]
[375760055,1753732244254,-3430.45,0.00020821,2]
[375760056,1753732244263,-622.29,0.00020821,2]
[375760057,1753732244272,-473.2,0.00020821,2]
[375760058,1753732244282,-460.0,0.00020821,2]
[375760059,1753732244291,-1565.51,0.00020821,2]
[375760060,1753732244299,-930.17,0.00020821,2]
[375760061,1753732244309,-460.0,0.00020821,2]
[375760062,1753732244318,-460.0,0.00020821,2]
[375760063,1753732244327,-460.0,0.00020821,2]
[375760064,1753732244336,-738.4,0.00020821,2]
[375760065,1753732244347,-192.31603521,0.00020821,2]
[375760066,1753732244357,-460.0,0.00020821,2]
[375760067,1753732244366,-586.63,0.00020821,2]
[375760068,1753732244375,-460.0,0.00020821,2]
[375760069,1753732244384,-460.0,0.00020821,2]
[375760070,1753732244393,-3165.1,0.00020821,2]
[375760071,1753732244402,-460.0,0.00020821,2]
[375760072,1753732244411,-1490.83,0.00020821,2]
[375760073,1753732244420,-460.0,0.00020821,2]
[375760074,1753732244429,-460.0,0.00020821,2]
[375760075,1753732244439,-483.33,0.00020821,2]
[375760076,1753732244448,-2025.5,0.00020821,2]
[375760077,1753732244457,-1649.51,0.00020821,2]
[375760078,1753732244466,-904.77,0.00020821,2]
[375760079,1753732244475,-500.38,0.00020821,2]
[375760080,1753732244484,-460.0,0.00020821,2]
[375760081,1753732244493,-460.0,0.00020821,2]
[375760082,1753732244502,-460.0,0.00020821,2]
[375760083,1753732244511,-710.73,0.00020821,2]
[375760084,1753732244519,-460.0,0.00020821,2]
[375760085,1753732244528,-460.0,0.00020821,2]
[375760086,1753732244537,-1387.64,0.00020821,2]
[375760087,1753732244546,-645.56,0.00020821,2]
[375760088,1753732244555,-460.0,0.00020821,2]
[375760089,1753732244564,-460.0,0.00020821,2]
[375760090,1753732244573,-460.0,0.00020821,2]
[375760091,1753732244582,-160.0,0.00020827,2]
[375760092,1753732244591,-160.0,0.00020827,2]
[375760093,1753732244600,-231.34820253,0.00020827,2]
[375760094,1753732244608,-216.06083566,0.00020827,2]
[375760095,1753732244617,-840.90880427,0.00020827,2]
[375760096,1753732244627,-214.87999826,0.00020827,2]
[375760097,1753732244636,-312.16666667,0.00020827,2]
[375760098,1753732244645,-454.6043428,0.00020827,2]
[375760099,1753732244654,-526.58819812,0.00020827,2]
[375760100,1753732244663,-12634.73134317,0.00020827,2]
[375760101,1753732244672,-160.0,0.00020827,2]
[375760102,1753732244681,-160.0,0.00020827,2]
[375760103,1753732244690,-160.0,0.00020827,2]
[375760104,1753732244698,-160.0,0.00020827,2]
[375760105,1753732244707,-160.0,0.00020827,2]
[375760106,1753732244716,-160.0,0.00020827,2]
[375760107,1753732244725,-160.0,0.00020827,2]
[375760108,1753732244734,-160.0,0.00020827,2]
[375760109,1753732244743,-209.14776071,0.00020878,2]
[375760110,1753732244752,-202.0,0.00020892,2]
[375760111,1753732244761,-1212.3,0.00021034,4]
[375760112,1753732244771,-500.0,0.00021068,2]
[375760113,1753732244780,-1500.0,0.00021068,2]
[375760114,1753732244789,-1510.63255838,0.00021068,2]
[375760115,1753732244798,-1500.0,0.00021068,2]
[375760116,1753732244807,-1500.0,0.00021068,2]
[375760117,1753732244816,-1500.0,0.00021068,2]
[375760118,1753732244825,-460.0,0.00021095,2]
[375760119,1753732244834,-951.44,0.00021095,2]
[375760120,1753732244845,-670.97,0.00021095,2]
[375760121,1753732244855,-460.0,0.00021095,2]
[375760122,1753732244865,-460.0,0.00021095,2]
[375760123,1753732244875,-475.44,0.00021095,2]
[375760124,1753732244883,-460.0,0.00021095,2]
[375760125,1753732244893,-460.0,0.00021095,2]
[375760126,1753732244902,-460.0,0.00021095,2]
[375760127,1753732244911,-578.46,0.00021095,2]
[375760128,1753732244921,-4776.13,0.00021095,2]
[375760129,1753732244930,-460.0,0.00021095,2]
[375760130,1753732244940,-460.0,0.00021095,2]
[375760131,1753732244949,-460.0,0.00021095,2]
[375760132,1753732244958,-2556.15,0.00021095,2]
[375760133,1753732244967,-5853.43,0.00021095,2]
[375760134,1753732244976,-541.14,0.00021095,2]
[375760135,1753732244986,-542.76,0.00021095,2]
[375760136,1753732244995,-460.0,0.00021095,2]
[375760137,1753732245005,-1757.55,0.00021095,2]
[375760138,1753732245014,-460.0,0.00021095,2]
[375760139,1753732245024,-460.0,0.00021095,2]
[375760140,1753732245035,-460.0,0.00021095,2]
[375760141,1753732245046,-505.23,0.00021095,2]
[375760142,1753732245055,-3430.45,0.00021095,2]
[375760143,1753732245064,-622.29,0.00021095,2]
[375760144,1753732245073,-473.2,0.00021095,2]
[375760145,1753732245083,-460.0,0.00021095,2]
[375760146,1753732245093,-1565.51,0.00021095,2]
[375760147,1753732245102,-930.17,0.00021095,2]
[375760148,1753732245113,-460.0,0.00021095,2]
[375760149,1753732245122,-460.0,0.00021095,2]
[375760150,1753732245132,-738.4,0.00021095,2]
[375760151,1753732245141,-460.0,0.00021095,2]
[375760152,1753732245151,-586.63,0.00021095,2]
[375760153,1753732245160,-460.0,0.00021095,2]
[375760155,1753732245169,-3165.1,0.00021095,2]
[375760157,1753732245179,-460.0,0.00021095,2]
[375760159,1753732245188,-1490.83,0.00021095,2]
[375760161,1753732245197,-460.0,0.00021095,2]
[375760162,1753732245207,-460.0,0.00021095,2]
[375760164,1753732245216,-483.33,0.00021095,2]
[375760166,1753732245225,-2025.5,0.00021095,2]
[375760168,1753732245234,-1649.51,0.00021095,2]
[375760170,1753732245243,-904.77,0.00021095,2]
[375760172,1753732245252,-500.38,0.00021095,2]
[375760174,1753732245260,-460.0,0.00021095,2]
[375760176,1753732245272,-460.0,0.00021095,2]
[375760178,1753732245285,-460.0,0.00021095,2]
[375760181,1753732245297,-710.73,0.00021095,2]
[375760183,1753732245312,-460.0,0.00021095,2]
[375760185,1753732245324,-460.0,0.00021095,2]
[375760187,1753732245334,-1387.64,0.00021095,2]
[375760189,1753732245347,-645.56,0.00021095,2]
[375760191,1753732245360,-460.0,0.00021095,2]
[375760194,1753732245373,-460.0,0.00021095,2]
[375760196,1753732245385,-460.0,0.00021095,2]
[375760198,1753732245396,-160.0,0.00021113,2]
[375760200,1753732245408,-410.96699626,0.00021133,2]
[375760203,1753732245421,-158.348141,0.0002116,2]
[375760205,1753732245432,-500.0,0.00021244,2]
[375760207,1753732245444,-200.0,0.00021366,15]
[375760209,1753732245456,-200.0,0.00021366,15]
[375760213,1753732245471,-200.0,0.00021366,15]
[375760216,1753732245484,-200.0,0.00021366,15]
[375760220,1753732245496,-320.0,0.00021366,15]
[375760224,1753732245507,-460.0,0.00021369,2]
[375760226,1753732245520,-951.44,0.00021369,2]
[375760228,1753732245530,-670.97,0.00021369,2]
[375760230,1753732245542,-241.05363665,0.00021369,2]
[375760234,1753732245555,-196.00371425,0.00021369,2]
[375760236,1753732245568,-475.44,0.00021369,2]
[375760238,1753732245581,-460.0,0.00021369,2]
[375760240,1753732245593,-460.0,0.00021369,2]
[375760244,1753732245603,-460.0,0.00021369,2]
[375760246,1753732245614,-578.46,0.00021369,2]
[375760248,1753732245626,-4776.13,0.00021369,2]
[375760250,1753732245636,-460.0,0.00021369,2]
[375760252,1753732245648,-460.0,0.00021369,2]
[375760254,1753732245660,-460.0,0.00021369,2]
[375760257,1753732245673,-2556.15,0.00021369,2]
[375760259,1753732245685,-5853.43,0.00021369,2]
[375760261,1753732245697,-541.14,0.00021369,2]
[375760264,1753732245710,-542.76,0.00021369,2]
[375760266,1753732245722,-460.0,0.00021369,2]
[375760268,1753732245735,-1757.55,0.00021369,2]
[375760270,1753732245749,-460.0,0.00021369,2]
[375760271,1753732245759,-460.0,0.00021369,2]
[375760272,1753732245770,-460.0,0.00021369,2]
[375760273,1753732245779,-505.23,0.00021369,2]
[375760274,1753732245789,-3430.45,0.00021369,2]
[375760275,1753732245800,-622.29,0.00021369,2]
[375760276,1753732245812,-473.2,0.00021369,2]
[375760277,1753732245825,-460.0,0.00021369,2]
[375760278,1753732245838,-1565.51,0.00021369,2]
[375760279,1753732245850,-930.17,0.00021369,2]
[375760280,1753732245861,-460.0,0.00021369,2]
[375760281,1753732245872,-460.0,0.00021369,2]
[375760282,1753732245884,-738.4,0.00021369,2]
[375760283,1753732245896,-586.63,0.00021369,2]
[375760284,1753732245908,-460.0,0.00021369,2]
[375760287,1753732245919,-3165.1,0.00021369,2]
[375760289,1753732245930,-460.0,0.00021369,2]
[375760291,1753732245940,-1490.83,0.00021369,2]
[375760293,1753732245950,-460.0,0.00021369,2]
[375760295,1753732245962,-460.0,0.00021369,2]
[375760297,1753732245972,-483.33,0.00021369,2]
[375760298,1753732245984,-2025.5,0.00021369,2]
[375760299,1753732245995,-1649.51,0.00021369,2]
[375760300,1753732246006,-904.77,0.00021369,2]
[375760302,1753732246016,-500.38,0.00021369,2]
[375760304,1753732246027,-460.0,0.00021369,2]
[375760306,1753732246040,-460.0,0.00021369,2]
[375760308,1753732246051,-460.0,0.00021369,2]
[375760310,1753732246061,-710.73,0.00021369,2]
[375760313,1753732246073,-460.0,0.00021369,2]
[375760316,1753732246085,-460.0,0.00021369,2]
[375760317,1753732246096,-1387.64,0.00021369,2]
[375760318,1753732246107,-645.56,0.00021369,2]
[375760320,1753732246122,-526.66642539,0.00021369,2]
[375760321,1753732246133,-460.0,0.00021369,2]
[375760322,1753732246145,-460.0,0.00021369,2]
[375760323,1753732246156,-1387.31851068,0.00021407,2]
[375760324,1753732246167,-1212.3,0.00021463,4]
[375760325,1753732246178,-500.0,0.00021616,2]
[375760326,1753732246190,-1000.0,0.00021616,2]
[375760327,1753732246201,-2000.0,0.00021616,2]
[375760328,1753732246212,-1404.74566212,0.00021616,2]
[375760329,1753732246223,-379.48976732,0.00021642,2]
[375760330,1753732246234,-2573.53663211,0.00021642,2]
[375760331,1753732246245,-2573.53663211,0.00021642,2]
[375760332,1753732246256,-2573.53663211,0.00021642,2]
[375760333,1753732246267,-2573.53663211,0.00021642,2]
[375760334,1753732246278,-2573.53663211,0.00021642,2]
[375760335,1753732246289,-2573.53663211,0.00021642,2]
[375760336,1753732246300,-2573.53663211,0.00021642,2]
[375760337,1753732246312,-2573.53663211,0.00021642,2]
[375760338,1753732246322,-2573.53663211,0.00021642,2]
[375760339,1753732246332,-2573.53663211,0.00021642,2]
[375760340,1753732246345,-2573.53663211,0.00021642,2]
[375760341,1753732246356,-2573.53663211,0.00021642,2]
[375760342,1753732246367,-2573.53663211,0.00021642,2]
[375760343,1753732246378,-2573.53663211,0.00021642,2]
[375760344,1753732246389,-2573.53663211,0.00021642,2]
[375760345,1753732246399,-2573.53663211,0.00021642,2]
[375760346,1753732246410,-2573.53663211,0.00021642,2]
[375760347,1753732246421,-2573.53663211,0.00021642,2]
[375760348,1753732246431,-2573.53663211,0.00021642,2]
[375760349,1753732246442,-460.0,0.00021643,2]
[375760350,1753732246453,-951.44,0.00021643,2]
[375760351,1753732246463,-670.97,0.00021643,2]
[375760352,1753732246474,-475.44,0.00021643,2]
[375760353,1753732246484,-460.0,0.00021643,2]
[375760354,1753732246495,-460.0,0.00021643,2]
[375760355,1753732246506,-460.0,0.00021643,2]
[375760356,1753732246517,-578.46,0.00021643,2]
[375760357,1753732246527,-4776.13,0.00021643,2]
[375760358,1753732246538,-460.0,0.00021643,2]
[375760359,1753732246549,-460.0,0.00021643,2]
[375760360,1753732246560,-460.0,0.00021643,2]
[375760361,1753732246571,-2556.15,0.00021643,2]
[375760362,1753732246582,-5853.43,0.00021643,2]
[375760363,1753732246594,-541.14,0.00021643,2]
[375760364,1753732246605,-542.76,0.00021643,2]
[375760365,1753732246616,-460.0,0.00021643,2]
[375760366,1753732246627,-1757.55,0.00021643,2]
[375760367,1753732246638,-460.0,0.00021643,2]
[375760368,1753732246649,-460.0,0.00021643,2]
[375760369,1753732246661,-460.0,0.00021643,2]